[Event "Slovakia Open Piestany-A 2022"]
[Site "Piestany"]
[Date "2022.07.15"]
[Round "5.24"]
[White "Aradhya, Garg"]
[Black "Travnicek, Krystof Mikulas"]
[Result "1/2-1/2"]
[ECO "B31"]
[WhiteElo "2229"]
[BlackElo "2138"]
[Annotator "ChessBase"]
[PlyCount "67"]
[EventDate "2022.07.12"]
[EventType "swiss"]
[EventCountry "SVK"]
[SourceTitle "playchess.com"]
[Source "ChessBase"]
[SourceQuality "1"]
[TimeControl "40/5400+30:1800+30"]

1. Nf3 {[%emt 0:00:04]} c5 {[%emt 0:00:29]} 2. e4 {[%emt 0:00:08]} Nc6 {[%emt 0:00:33]} 3. Bb5 {[%emt 0:00:09]} g6 {[%emt 0:00:30]} 4. O-O {[%emt 0:00:04]} Bg7 {[%emt 0:00:19]} 5. Re1 {[%emt 0:00:04]} Nf6 {[%emt 0:00:47]} 6. e5 {[%emt 0:03:50]} Nd5 {[%emt 0:00:17]} 7. Nc3 {[%emt 0:00:02]} Nc7 {[%emt 0:00:21]} 8. Bxc6 {[%emt 0:03:59]} dxc6 {[%emt 0:00:40]} 9. Ne4 {[%emt 0:00:02]} Ne6 {[%emt 0:01:30]} 10. d3 {[%emt 0:01:06]} h6 {[%emt 0:01:49]} 11. a3 {[%emt 0:02:23]} a5 {[%emt 0:05:37]} 12. Be3 {[%emt 0:05:52]} b6 {[%emt 0:02:53]} 13. Qd2 {[%emt 0:26:29]} Nd4 {[%emt 0:07:12]} 14. Bxd4 {[%emt 0:02:55]} cxd4 {[%emt 0:00:10]} 15. Nf6+ {[%emt 0:01:01]} Kf8 {[%emt 0:03:26]} 16. Ne4 {[%emt 0:01:31]} Bg4 {[%emt 0:17:00]} 17. Qf4 {[%emt 0:00:05]} Bxf3 {[%emt 0:02:01]} 18. e6 {[%emt 0:00:31]} f5 {[%emt 0:02:50]} 19. Qxf3 {[%emt 0:01:08]} Kg8 {[%emt 0:06:54]} 20. Ng3 {[%emt 0:06:49]} Qd5 {[%emt 0:08:04]} 21. Qf4 {[%emt 0:13:35]} Kh7 {[%emt 0:04:47]} 22. h4 {[%emt 0:01:16]} h5 {[%emt 0:03:55]} 23. Nf1 {[%emt 0:04:21]} Rhd8 {[%emt 0:05:48]} 24. Qc7 {[%emt 0:02:41]} Qd6 {[%emt 0:02:52]} 25. Qxd6 {[%emt 0:00:07]} Rxd6 {[%emt 0:00:41]} 26. Nd2 {[%emt 0:00:17]} Rd5 {[%emt 0:05:01]} 27. Nc4 {[%emt 0:04:32]} Ra6 {[%emt 0:07:38]} 28. f4 {[%emt 0:03:19]} b5 {[%emt 0:01:49]} 29. Nd2 {[%emt 0:00:41]} a4 {[%emt 0:00:35]} 30. Re2 {[%emt 0:02:29]} Kg8 {[%emt 0:01:51]} 31. Kf2 {[%emt 0:00:48]} Kf8 {[%emt 0:00:53]} 32. Nf3 {[%emt 0:01:13]} c5 {[%emt 0:02:06]} 33. Rae1 {[%emt 0:02:39]} Bf6 {[%emt 0:01:22]} 34. g3 {[%emt 0:00:33]} 1/2-1/2

[Event "Slovakia Open Piestany-A 2022"]
[Site "Piestany"]
[Date "2022.07.15"]
[Round "5.26"]
[White "Compel, Daniel"]
[Black "Holly, Andrej"]
[Result "1/2-1/2"]
[ECO "C07"]
[WhiteElo "2098"]
[BlackElo "2213"]
[Annotator "ChessBase"]
[PlyCount "121"]
[EventDate "2022.07.12"]
[EventType "swiss"]
[EventCountry "SVK"]
[SourceTitle "playchess.com"]
[Source "ChessBase"]
[SourceQuality "1"]
[TimeControl "40/5400+30:1800+30"]

1. d4 {[%emt 0:05:25]} e6 {[%emt 0:00:33]} 2. e4 {[%emt 0:01:46]} d5 {[%emt 0:00:33]} 3. Nd2 {[%emt 0:00:10]} c5 {[%emt 0:00:05]} 4. exd5 {[%emt 0:00:03]} Qxd5 {[%emt 0:00:06]} 5. Ngf3 {[%emt 0:00:06]} cxd4 {[%emt 0:00:17]} 6. Bc4 {[%emt 0:00:04]} Qd6 {[%emt 0:00:07]} 7. O-O {[%emt 0:00:06]} Nf6 {[%emt 0:00:24]} 8. Nb3 {[%emt 0:00:09]} Nc6 {[%emt 0:00:08]} 9. Nbxd4 {[%emt 0:00:15]} Nxd4 {[%emt 0:00:46]} 10. Qxd4 {[%emt 0:00:09]} Qxd4 {[%emt 0:00:30]} 11. Nxd4 {[%emt 0:00:04]} Bd7 {[%emt 0:01:56]} 12. Bf4 {[%emt 0:02:15]} Bc5 {[%emt 0:02:40]} 13. Rad1 {[%emt 0:02:22]} Rc8 {[%emt 0:04:15]} 14. Bb3 {[%emt 0:00:26]} O-O {[%emt 0:01:17]} 15. h3 {[%emt 0:01:14]} Rfd8 {[%emt 0:03:37]} 16. c3 {[%emt 0:00:26]} Be8 {[%emt 0:08:25]} 17. Be3 {[%emt 0:07:09]} Nd5 {[%emt 0:08:48]} 18. Bg5 {[%emt 0:08:43]} Nf6 {[%emt 0:07:34]} 19. Be3 {[%emt 0:01:17]} Bb6 {[%emt 0:09:17]} 20. Rfe1 {[%emt 0:04:53]} h6 {[%emt 0:02:29]} 21. Nf3 {[%emt 0:08:36]} Rxd1 {[%emt 0:01:59]} 22. Bxd1 {[%emt 0:00:11]} Bxe3 {[%emt 0:00:18]} 23. Rxe3 {[%emt 0:00:04]} Rd8 {[%emt 0:02:43]} 24. Bb3 {[%emt 0:01:45]} Kf8 {[%emt 0:03:35]} 25. Nd4 {[%emt 0:03:52]} Rd6 {[%emt 0:04:22]} 26. Re2 {[%emt 0:03:55]} Nd5 {[%emt 0:01:23]} 27. g3 {[%emt 0:02:46]} a5 {[%emt 0:04:24]} 28. Rd2 {[%emt 0:02:03]} a4 {[%emt 0:01:21]} 29. Nf5 {[%emt 0:02:18]} exf5 {[%emt 0:01:43]} 30. Bxd5 {[%emt 0:00:13]} Bc6 {[%emt 0:05:39]} 31. c4 {[%emt 0:00:05]} Bxd5 {[%emt 0:00:19]} 32. cxd5 {[%emt 0:00:05]} Ke7 {[%emt 0:01:31]} 33. Rd4 {[%emt 0:07:26]} b5 {[%emt 0:02:10]} 34. Kf1 {[%emt 0:05:22]} Rd7 {[%emt 0:01:50]} 35. Ke2 {[%emt 0:25:13]} Kd6 {[%emt 0:00:05]} 36. Kd3 {[%emt 0:00:31]} Rc7 {[%emt 0:00:41]} 37. Kd2 {[%emt 0:00:44]} Rc5 {[%emt 0:00:34]} 38. Rf4 {[%emt 0:01:03]} Rxd5+ {[%emt 0:00:46]} 39. Kc3 {[%emt 0:00:04]} Kc5 {[%emt 0:07:30]} 40. h4 {[%emt 0:01:59]} g6 {[%emt 0:01:01]} 41. a3 {[%emt 0:33:11]} Rd1 {[%emt 0:34:24]} 42. Kc2 {[%emt 0:00:00]} Rd4 {[%emt 0:00:00]} 43. Rf3 {[%emt 0:00:00]} Kc4 {[%emt 0:00:00]} 44. Rc3+ {[%emt 0:00:00]} Kd5 {[%emt 0:00:00]} 45. Re3 {[%emt 0:00:00]} Re4 {[%emt 0:00:00]} 46. Rd3+ {[%emt 0:00:00]} Ke5 {[%emt 0:00:00]} 47. f4+ {[%emt 0:00:00]} Ke6 {[%emt 0:00:00]} 48. Kd2 {[%emt 0:00:00]} f6 {[%emt 0:00:00]} 49. Rd8 {[%emt 0:00:00]} g5 {[%emt 0:00:00]} 50. fxg5 {[%emt 0:00:00]} fxg5 {[%emt 0:00:00]} 51. Rh8 {[%emt 0:00:00]} Rg4 {[%emt 0:00:00]} 52. Rxh6+ {[%emt 0:00:00]} Kd5 {[%emt 0:00:00]} 53. hxg5 {[%emt 0:00:00]} Rxg3 {[%emt 0:00:00]} 54. Rb6 {[%emt 0:00:00]} Kc5 {[%emt 0:00:00]} 55. Rg6 {[%emt 0:00:00]} f4 {[%emt 0:00:00]} 56. Rf6 {[%emt 0:00:09]} Rg4 {[%emt 0:00:00]} 57. Kd3 {[%emt 0:03:56]} Rg3+ {[%emt 0:00:00]} 58. Kd2 {[%emt 0:00:18]} Rg4 {[%emt 0:02:19]} 59. Kd3 {[%emt 0:00:05]} Rg3+ {[%emt 0:00:02]} 60. Kd2 {[%emt 0:00:04]} Rg2+ {[%emt 0:00:04]} 61. Kc3 {[%emt 0:00:46]} 1/2-1/2

[Event "Slovakia Open Piestany-A 2022"]
[Site "Piestany"]
[Date "2022.07.15"]
[Round "5.27"]
[White "Paluska, Karol"]
[Black "Skreko, Igor"]
[Result "1/2-1/2"]
[ECO "E71"]
[WhiteElo "1957"]
[BlackElo "2193"]
[Annotator "ChessBase"]
[PlyCount "120"]
[EventDate "2022.07.12"]
[EventType "swiss"]
[EventCountry "SVK"]
[SourceTitle "playchess.com"]
[Source "ChessBase"]
[SourceQuality "1"]
[TimeControl "40/5400+30:1800+30"]

1. d4 {[%emt 0:05:10]} Nf6 {[%emt 0:00:05]} 2. c4 {[%emt 0:00:54]} g6 {[%emt 0:00:05]} 3. Nc3 {[%emt 0:00:22]} Bg7 {[%emt 0:00:05]} 4. e4 {[%emt 0:00:20]} d6 {[%emt 0:00:05]} 5. h3 {[%emt 0:00:20]} O-O {[%emt 0:00:06]} 6. Be3 {[%emt 0:00:14]} c6 {[%emt 0:01:46]} 7. g4 {[%emt 0:01:30]} e5 {[%emt 0:01:21]} 8. d5 {[%emt 0:00:06]} Na6 {[%emt 0:03:50]} 9. Nge2 {[%emt 0:00:50]} Nc5 {[%emt 0:02:08]} 10. Ng3 {[%emt 0:02:49]} a5 {[%emt 0:00:15]} 11. g5 {[%emt 0:07:49]} Ne8 {[%emt 0:00:25]} 12. dxc6 {[%emt 0:00:35]} Nc7 {[%emt 0:00:56]} 13. cxb7 {[%emt 0:04:43]} Bxb7 {[%emt 0:00:11]} 14. Bxc5 {[%emt 0:02:00]} dxc5 {[%emt 0:00:07]} 15. Qxd8 {[%emt 0:00:14]} Rfxd8 {[%emt 0:00:12]} 16. Nd5 {[%emt 0:00:57]} Ne6 {[%emt 0:01:07]} 17. h4 {[%emt 0:00:33]} Rab8 {[%emt 0:06:01]} 18. O-O-O {[%emt 0:04:35]} Kf8 {[%emt 0:10:00]} 19. Bd3 {[%emt 0:04:29]} Ba6 {[%emt 0:00:55]} 20. Ne2 {[%emt 0:03:11]} Rd7 {[%emt 0:10:17]} 21. Kc2 {[%emt 0:03:03]} Bc8 {[%emt 0:14:09]} 22. Rb1 {[%emt 0:04:35]} Rdb7 {[%emt 0:02:27]} 23. Kc3 {[%emt 0:03:45]} Bd7 {[%emt 0:02:41]} 24. b3 {[%emt 0:13:15]} Bc6 {[%emt 0:02:32]} 25. Rhd1 {[%emt 0:05:11]} h6 {[%emt 0:05:10]} 26. Rg1 {[%emt 0:00:11]} hxg5 {[%emt 0:07:58]} 27. hxg5 {[%emt 0:01:23]} Ke8 {[%emt 0:02:19]} 28. Bc2 {[%emt 0:01:31]} Bxd5 {[%emt 0:07:32]} 29. exd5 {[%emt 0:04:44]} Nd4 {[%emt 0:04:22]} 30. Nxd4 {[%emt 0:02:15]} exd4+ {[%emt 0:00:11]} 31. Kd2 {[%emt 0:00:25]} Be5 {[%emt 0:02:27]} 32. Rbe1 {[%emt 0:01:50]} Re7 {[%emt 0:00:05]} 33. Re4 {[%emt 0:02:18]} Kf8 {[%emt 0:06:58]} 34. Ke2 {[%emt 0:13:21]} Rbe8 {[%emt 0:01:33]} 35. Kf3 {[%emt 0:00:30]} Bd6 {[%emt 0:02:15]} 36. Rge1 {[%emt 0:01:30]} Rxe4 {[%emt 0:02:13]} 37. Rxe4 {[%emt 0:00:11]} Rb8 {[%emt 0:00:27]} 38. Kg4 {[%emt 0:02:42]} Kg7 {[%emt 0:00:19]} 39. Re2 {[%emt 0:00:30]} Rh8 {[%emt 0:00:21]} 40. f4 {[%emt 0:00:57]} Rh1 {[%emt 0:02:53]} 41. Rf2 {[%emt 0:11:35]} Rg1+ {[%emt 0:04:46]} 42. Kf3 {[%emt 0:00:34]} Ra1 {[%emt 0:01:03]} 43. Bd3 {[%emt 0:00:21]} Re1 {[%emt 0:01:36]} 44. Be2 {[%emt 0:00:53]} Rc1 {[%emt 0:02:27]} 45. Bd3 {[%emt 0:01:25]} Rh1 {[%emt 0:01:55]} 46. Bf1 {[%emt 0:02:32]} Rh8 {[%emt 0:02:23]} 47. Kg4 {[%emt 0:04:55]} Rh1 {[%emt 0:01:43]} 48. Kf3 {[%emt 0:00:05]} Kf8 {[%emt 0:00:31]} 49. Kg2 {[%emt 0:01:01]} Rh8 {[%emt 0:01:32]} 50. Kf3 {[%emt 0:00:48]} Ke7 {[%emt 0:00:30]} 51. Kg4 {[%emt 0:02:10]} Rh1 {[%emt 0:00:37]} 52. a4 {[%emt 0:01:33]} Kf8 {[%emt 0:03:03]} 53. Kf3 {[%emt 0:02:50]} Kg7 {[%emt 0:00:23]} 54. Ke4 {[%emt 0:00:36]} Rh8 {[%emt 0:00:30]} 55. Kf3 {[%emt 0:02:04]} Bc7 {[%emt 0:03:14]} 56. Kg3 {[%emt 0:03:03]} Rb8 {[%emt 0:01:09]} 57. Rb2 {[%emt 0:02:07]} Bd6 {[%emt 0:00:45]} 58. Kf3 {[%emt 0:00:17]} Bc7 {[%emt 0:03:12]} 59. Kg4 {[%emt 0:00:11]} Bd6 {[%emt 0:07:46]} 60. Kf3 {[%emt 0:00:06]} Rh8 {[%emt 0:01:22]} 1/2-1/2

[Event "Slovakia Open Piestany-A 2022"]
[Site "Piestany"]
[Date "2022.07.15"]
[Round "5.28"]
[White "Michelle Catherina, P."]
[Black "Sosovickova, Jana"]
[Result "1-0"]
[ECO "C77"]
[WhiteElo "2141"]
[BlackElo "1958"]
[Annotator "ChessBase"]
[PlyCount "61"]
[EventDate "2022.07.12"]
[EventType "swiss"]
[EventCountry "SVK"]
[SourceTitle "playchess.com"]
[Source "ChessBase"]
[SourceQuality "1"]
[TimeControl "40/5400+30:1800+30"]

1. e4 {[%emt 0:02:41]} e5 {[%emt 0:00:03]} 2. Nf3 {[%emt 0:00:07]} Nc6 {[%emt 0:00:04]} 3. Bb5 {[%emt 0:00:07]} a6 {[%emt 0:00:03]} 4. Ba4 {[%emt 0:00:11]} Nf6 {[%emt 0:00:04]} 5. Nc3 {[%emt 0:00:28]} b5 {[%emt 0:00:22]} 6. Bb3 {[%emt 0:00:05]} Bc5 {[%emt 0:00:08]} 7. d3 {[%emt 0:00:06]} d6 {[%emt 0:00:21]} 8. Nd5 {[%emt 0:00:34]} h6 {[%emt 0:02:21]} 9. c3 {[%emt 0:00:47]} O-O {[%emt 0:01:34]} 10. Nxf6+ {[%emt 0:04:40]} Qxf6 {[%emt 0:00:22]} 11. Bd5 {[%emt 0:00:08]} Bb7 {[%emt 0:05:53]} 12. g4 {[%emt 0:02:04]} Nd8 {[%emt 0:09:42]} 13. g5 {[%emt 0:07:24]} Qe7 {[%emt 0:01:37]} 14. Bb3 {[%emt 0:17:36]} Ne6 {[%emt 0:04:28]} 15. gxh6 {[%emt 0:02:38]} g6 {[%emt 0:02:17]} 16. Rg1 {[%emt 0:02:07]} Kh7 {[%emt 0:02:00]} 17. Bxe6 {[%emt 0:11:53]} fxe6 {[%emt 0:00:20]} 18. Ng5+ {[%emt 0:02:19]} Kh8 {[%emt 0:01:01]} 19. Be3 {[%emt 0:01:01]} Bxe3 {[%emt 0:04:22]} 20. fxe3 {[%emt 0:00:06]} Rf6 {[%emt 0:00:24]} 21. Qg4 {[%emt 0:04:23]} Raf8 {[%emt 0:02:37]} 22. O-O-O {[%emt 0:02:13]} c5 {[%emt 0:10:46]} 23. h4 {[%emt 0:03:04]} Bc6 {[%emt 0:05:36]} 24. Qh3 {[%emt 0:03:27]} d5 {[%emt 0:02:40]} 25. Qg3 {[%emt 0:03:41]} d4 {[%emt 0:02:42]} 26. Qxe5 {[%emt 0:04:51]} dxe3 {[%emt 0:00:29]} 27. Rde1 {[%emt 0:00:49]} Kg8 {[%emt 0:04:05]} 28. h7+ {[%emt 0:02:13]} Kg7 {[%emt 0:00:19]} 29. Rxe3 {[%emt 0:00:16]} c4 {[%emt 0:01:02]} 30. dxc4 {[%emt 0:01:18]} bxc4 {[%emt 0:00:05]} 31. Rf3 {[%emt 0:02:04]} 1-0

[Event "Slovakia Open Piestany-A 2022"]
[Site "Piestany"]
[Date "2022.07.15"]
[Round "5.29"]
[White "Sevcikova, Lucia"]
[Black "Pennica, Andrea"]
[Result "0-1"]
[ECO "A58"]
[WhiteElo "2036"]
[BlackElo "1986"]
[Annotator "ChessBase"]
[PlyCount "70"]
[EventDate "2022.07.12"]
[EventType "swiss"]
[EventCountry "SVK"]
[SourceTitle "playchess.com"]
[Source "ChessBase"]
[SourceQuality "1"]
[TimeControl "40/5400+30:1800+30"]

1. d4 {[%emt 0:04:00]} Nf6 {[%emt 0:00:57]} 2. c4 {[%emt 0:00:09]} c5 {[%emt 0:00:06]} 3. d5 {[%emt 0:00:04]} b5 {[%emt 0:00:03]} 4. cxb5 {[%emt 0:00:17]} a6 {[%emt 0:00:05]} 5. bxa6 {[%emt 0:00:05]} g6 {[%emt 0:00:05]} 6. Nc3 {[%emt 0:01:01]} Bg7 {[%emt 0:00:08]} 7. e4 {[%emt 0:02:11]} O-O {[%emt 0:00:11]} 8. Nf3 {[%emt 0:05:17]} Qa5 {[%emt 0:00:38]} 9. Bd2 {[%emt 0:04:52]} d6 {[%emt 0:00:06]} 10. Be2 {[%emt 0:04:12]} Bxa6 {[%emt 0:00:08]} 11. O-O {[%emt 0:02:32]} Bxe2 {[%emt 0:00:04]} 12. Qxe2 {[%emt 0:00:09]} Qa6 {[%emt 0:00:06]} 13. Qxa6 {[%emt 0:03:27]} Nxa6 {[%emt 0:00:05]} 14. a3 {[%emt 0:08:42]} Rfb8 {[%emt 0:02:16]} 15. Rfb1 {[%emt 0:12:48]} Rb3 {[%emt 0:30:34]} 16. Bc1 {[%emt 0:09:36]} Rab8 {[%emt 0:00:55]} 17. Nd2 {[%emt 0:01:25]} R3b7 {[%emt 0:00:07]} 18. f4 {[%emt 0:09:39]} Ng4 {[%emt 0:03:14]} 19. Nd1 {[%emt 0:02:05]} Nc7 {[%emt 0:06:27]} 20. h3 {[%emt 0:06:12]} Bd4+ {[%emt 0:00:37]} 21. Kf1 {[%emt 0:02:11]} Nf6 {[%emt 0:01:50]} 22. Ra2 {[%emt 0:06:24]} e6 {[%emt 0:00:22]} 23. dxe6 {[%emt 0:01:03]} Nxe6 {[%emt 0:00:10]} 24. g3 {[%emt 0:00:24]} h5 {[%emt 0:05:07]} 25. h4 {[%emt 0:02:01]} c4 {[%emt 0:01:11]} 26. Nxc4 {[%emt 0:03:43]} Nxe4 {[%emt 0:00:12]} 27. Kg2 {[%emt 0:00:32]} Rb3 {[%emt 0:07:01]} 28. Nce3 {[%emt 0:03:22]} Rc8 {[%emt 0:03:44]} 29. Kf3 {[%emt 0:03:13]} f5 {[%emt 0:01:54]} 30. Kg2 {[%emt 0:01:57]} Bxe3 {[%emt 0:00:15]} 31. Nxe3 {[%emt 0:01:04]} d5 {[%emt 0:02:19]} 32. Nxd5 {[%emt 0:01:09]} Rc2+ {[%emt 0:00:54]} 33. Kg1 {[%emt 0:00:38]} Rxg3+ {[%emt 0:00:41]} 34. Kh1 {[%emt 0:00:04]} Rh3+ {[%emt 0:00:35]} 35. Kg1 {[%emt 0:00:03]} Ng3 {[%emt 0:00:06]} 0-1

[Event "Slovakia Open Piestany-A 2022"]
[Site "Piestany"]
[Date "2022.07.15"]
[Round "5.30"]
[White "Soham Datar"]
[Black "Zdrazil, Patrik"]
[Result "1/2-1/2"]
[ECO "C11"]
[WhiteElo "2111"]
[BlackElo "2103"]
[Annotator "ChessBase"]
[PlyCount "106"]
[EventDate "2022.07.12"]
[EventType "swiss"]
[EventCountry "SVK"]
[SourceTitle "playchess.com"]
[Source "ChessBase"]
[SourceQuality "1"]
[TimeControl "40/5400+30:1800+30"]

1. e4 {[%emt 0:00:08]} e6 {[%emt 0:01:22]} 2. d4 {[%emt 0:00:11]} d5 {[%emt 0:00:04]} 3. Nc3 {[%emt 0:00:05]} Nf6 {[%emt 0:00:07]} 4. e5 {[%emt 0:00:10]} Nfd7 {[%emt 0:00:04]} 5. f4 {[%emt 0:00:06]} c5 {[%emt 0:00:03]} 6. Nf3 {[%emt 0:00:06]} Nc6 {[%emt 0:00:03]} 7. Be3 {[%emt 0:00:05]} Be7 {[%emt 0:00:04]} 8. Qd2 {[%emt 0:00:06]} a6 {[%emt 0:00:03]} 9. a3 {[%emt 0:06:23]} b6 {[%emt 0:07:40]} 10. g3 {[%emt 0:24:27]} Bb7 {[%emt 0:13:41]} 11. Bh3 {[%emt 0:01:18]} O-O {[%emt 0:03:22]} 12. O-O {[%emt 0:00:09]} Qc7 {[%emt 0:02:07]} 13. Ne2 {[%emt 0:16:11]} cxd4 {[%emt 0:11:12]} 14. Nexd4 {[%emt 0:00:05]} Nc5 {[%emt 0:00:20]} 15. Nxc6 {[%emt 0:01:27]} Bxc6 {[%emt 0:00:48]} 16. Nd4 {[%emt 0:00:05]} Bd7 {[%emt 0:06:13]} 17. Rae1 {[%emt 0:03:13]} a5 {[%emt 0:07:31]} 18. Bg2 {[%emt 0:04:12]} g6 {[%emt 0:13:34]} 19. h4 {[%emt 0:00:04]} h5 {[%emt 0:00:21]} 20. Kh2 {[%emt 0:03:39]} Rab8 {[%emt 0:04:13]} 21. f5 {[%emt 0:06:47]} exf5 {[%emt 0:00:12]} 22. Bg5 {[%emt 0:03:08]} Bxg5 {[%emt 0:05:11]} 23. Qxg5 {[%emt 0:00:15]} Ne6 {[%emt 0:00:54]} 24. Nxe6 {[%emt 0:00:08]} Bxe6 {[%emt 0:00:04]} 25. c3 {[%emt 0:00:35]} Kg7 {[%emt 0:03:24]} 26. Bf3 {[%emt 0:01:10]} Qd8 {[%emt 0:00:10]} 27. Qf4 {[%emt 0:00:06]} Qe7 {[%emt 0:01:15]} 28. Rd1 {[%emt 0:00:05]} Rfd8 {[%emt 0:00:17]} 29. Rd4 {[%emt 0:00:06]} Rbc8 {[%emt 0:02:56]} 30. Rfd1 {[%emt 0:00:05]} Rc5 {[%emt 0:06:15]} 31. Qd2 {[%emt 0:02:50]} Qc7 {[%emt 0:02:11]} 32. Qg5 {[%emt 0:01:44]} Rd7 {[%emt 0:00:35]} 33. Qe3 {[%emt 0:07:00]} Re7 {[%emt 0:03:08]} 34. Re1 {[%emt 0:00:30]} Rc4 {[%emt 0:01:42]} 35. Qg5 {[%emt 0:01:17]} Kh7 {[%emt 0:03:31]} 36. Bxh5 {[%emt 0:05:29]} Rxd4 {[%emt 0:02:06]} 37. cxd4 {[%emt 0:00:29]} gxh5 {[%emt 0:00:05]} 38. Qxh5+ {[%emt 0:00:15]} Kg7 {[%emt 0:00:09]} 39. Qg5+ {[%emt 0:00:07]} Kh7 {[%emt 0:01:39]} 40. Rc1 {[%emt 0:00:26]} Qd8 {[%emt 0:00:24]} 41. Qh5+ {[%emt 0:30:29]} Kg7 {[%emt 0:01:31]} 42. Qg5+ {[%emt 0:00:00]} Kf8 {[%emt 0:00:16]} 43. Qh6+ {[%emt 0:00:00]} Ke8 {[%emt 0:00:20]} 44. h5 {[%emt 0:00:00]} Kd7 {[%emt 0:01:01]} 45. Qd2 {[%emt 0:00:00]} Qh8 {[%emt 0:05:11]} 46. Qc2 {[%emt 0:00:00]} Qxh5+ {[%emt 0:00:09]} 47. Kg2 {[%emt 0:00:00]} Kd8 {[%emt 0:04:14]} 48. Qc6 {[%emt 0:00:00]} Qe2+ {[%emt 0:05:44]} 49. Kg1 {[%emt 0:00:00]} Rd7 {[%emt 0:08:49]} 50. Qxb6+ {[%emt 0:00:00]} Ke7 {[%emt 0:00:12]} 51. Rc8 {[%emt 0:00:00]} Qe3+ {[%emt 0:06:10]} 52. Kg2 {[%emt 0:00:00]} Qe2+ {[%emt 0:00:23]} 53. Kg1 {[%emt 0:00:00]} Qe1+ {[%emt 0:00:06]} 1/2-1/2

[Event "Slovakia Open Piestany-A 2022"]
[Site "Piestany"]
[Date "2022.07.15"]
[Round "5.31"]
[White "Chlpik, Martin"]
[Black "Saravanan Durga"]
[Result "1-0"]
[ECO "D02"]
[WhiteElo "2236"]
[BlackElo "1908"]
[Annotator "ChessBase"]
[PlyCount "54"]
[EventDate "2022.07.12"]
[EventType "swiss"]
[EventCountry "SVK"]
[SourceTitle "playchess.com"]
[Source "ChessBase"]
[SourceQuality "1"]
[TimeControl "40/5400+30:1800+30"]

1. d4 {[%emt 0:06:50]} Nf6 {[%emt 0:00:07]} 2. Nf3 {[%emt 0:00:37]} d5 {[%emt 0:00:07]} 3. Bf4 {[%emt 0:00:05]} c5 {[%emt 0:00:27]} 4. e3 {[%emt 0:00:02]} e6 {[%emt 0:01:05]} 5. c3 {[%emt 0:01:05]} Nc6 {[%emt 0:01:01]} 6. Nbd2 {[%emt 0:00:09]} Bd6 {[%emt 0:00:05]} 7. Bg3 {[%emt 0:00:04]} O-O {[%emt 0:00:38]} 8. Bd3 {[%emt 0:00:09]} b6 {[%emt 0:02:02]} 9. Ne5 {[%emt 0:02:16]} Bb7 {[%emt 0:00:06]} 10. f4 {[%emt 0:00:08]} Ne7 {[%emt 0:00:42]} 11. Qb1 {[%emt 0:00:05]} Ng6 {[%emt 0:06:14]} 12. O-O {[%emt 0:10:09]} cxd4 {[%emt 0:23:18]} 13. exd4 {[%emt 0:01:49]} Nh5 {[%emt 0:01:02]} 14. Ndf3 {[%emt 0:17:53]} Qe8 {[%emt 0:40:37]} 15. a4 {[%emt 0:07:28]} a6 {[%emt 0:01:56]} 16. Ng5 {[%emt 0:02:09]} f5 {[%emt 0:00:25]} 17. Qd1 {[%emt 0:05:59]} Nxg3 {[%emt 0:03:29]} 18. hxg3 {[%emt 0:00:11]} Nxe5 {[%emt 0:00:07]} 19. fxe5 {[%emt 0:00:09]} Bc7 {[%emt 0:00:13]} 20. g4 {[%emt 0:04:44]} Qg6 {[%emt 0:02:40]} 21. Nh3 {[%emt 0:00:09]} Qxg4 {[%emt 0:10:13]} 22. Qxg4 {[%emt 0:00:05]} fxg4 {[%emt 0:00:03]} 23. Ng5 {[%emt 0:00:36]} Rxf1+ {[%emt 0:04:41]} 24. Rxf1 {[%emt 0:00:03]} Re8 {[%emt 0:00:32]} 25. Bxh7+ {[%emt 0:00:17]} Kh8 {[%emt 0:00:03]} 26. Bg6 {[%emt 0:00:25]} Rb8 {[%emt 0:00:58]} 27. Rf7 {[%emt 0:00:16]} Bd8 {[%emt 0:00:27]} 1-0

[Event "Slovakia Open Piestany-A 2022"]
[Site "Piestany"]
[Date "2022.07.15"]
[Round "6.1"]
[White "Omelja, Artem"]
[Black "Demchenko, Anton"]
[Result "1-0"]
[ECO "E51"]
[WhiteElo "2478"]
[BlackElo "2653"]
[Annotator "ChessBase"]
[PlyCount "91"]
[EventDate "2022.07.12"]
[EventType "swiss"]
[EventCountry "SVK"]
[SourceTitle "playchess.com"]
[Source "ChessBase"]
[SourceQuality "1"]
[TimeControl "40/5400+30:1800+30"]

1. d4 {[%emt 0:01:23]} d5 {[%emt 0:00:17]} 2. c4 {[%emt 0:00:10]} e6 {[%emt 0:00:03]} 3. Nc3 {[%emt 0:00:20]} Bb4 {[%emt 0:00:10]} 4. e3 {[%emt 0:01:35]} Nf6 {[%emt 0:00:13]} 5. Bd2 {[%emt 0:02:07]} O-O {[%emt 0:01:34]} 6. Nf3 {[%emt 0:00:25]} b6 {[%emt 0:07:53]} 7. cxd5 {[%emt 0:04:08]} exd5 {[%emt 0:00:18]} 8. Rc1 {[%emt 0:00:26]} Bb7 {[%emt 0:03:31]} 9. Bd3 {[%emt 0:03:56]} Bd6 {[%emt 0:18:40]} 10. O-O {[%emt 0:01:33]} Ne4 {[%emt 0:22:28]} 11. Nb5 {[%emt 0:01:34]} Nd7 {[%emt 0:04:26]} 12. Be1 {[%emt 0:10:41]} Ndf6 {[%emt 0:01:48]} 13. Nxd6 {[%emt 0:02:55]} cxd6 {[%emt 0:01:59]} 14. Nd2 {[%emt 0:00:52]} Qe7 {[%emt 0:00:46]} 15. Nb1 {[%emt 0:03:03]} Ng5 {[%emt 0:01:21]} 16. Qd2 {[%emt 0:07:49]} Rfe8 {[%emt 0:01:34]} 17. Bb5 {[%emt 0:00:42]} Rec8 {[%emt 0:02:18]} 18. Rxc8+ {[%emt 0:00:37]} Rxc8 {[%emt 0:00:38]} 19. f3 {[%emt 0:00:15]} Ne8 {[%emt 0:02:42]} 20. Nc3 {[%emt 0:00:59]} Ne6 {[%emt 0:00:48]} 21. Bd3 {[%emt 0:01:31]} g6 {[%emt 0:00:22]} 22. Bg3 {[%emt 0:08:29]} h5 {[%emt 0:02:26]} 23. Qf2 {[%emt 0:04:00]} a6 {[%emt 0:03:36]} 24. a3 {[%emt 0:01:15]} b5 {[%emt 0:01:05]} 25. h3 {[%emt 0:01:34]} Qf6 {[%emt 0:06:43]} 26. Bb1 {[%emt 0:00:52]} N8g7 {[%emt 0:08:34]} 27. Ba2 {[%emt 0:00:33]} Nc7 {[%emt 0:00:08]} 28. e4 {[%emt 0:01:46]} Qe7 {[%emt 0:00:37]} 29. Qd2 {[%emt 0:04:25]} Rd8 {[%emt 0:02:48]} 30. Re1 {[%emt 0:02:11]} dxe4 {[%emt 0:01:15]} 31. fxe4 {[%emt 0:00:30]} Kh7 {[%emt 0:00:04]} 32. Qf2 {[%emt 0:05:11]} f6 {[%emt 0:01:40]} 33. Bh4 {[%emt 0:01:38]} Rf8 {[%emt 0:00:27]} 34. e5 {[%emt 0:02:08]} dxe5 {[%emt 0:00:59]} 35. dxe5 {[%emt 0:00:08]} Nf5 {[%emt 0:00:50]} 36. Bxf6 {[%emt 0:06:12]} Qe8 {[%emt 0:00:07]} 37. Rd1 {[%emt 0:03:55]} Qc6 {[%emt 0:01:52]} 38. Nd5 {[%emt 0:01:08]} Ne6 {[%emt 0:00:35]} 39. Bb1 {[%emt 0:05:44]} Qc5 {[%emt 0:01:36]} 40. Qxc5 {[%emt 0:02:10]} Nxc5 {[%emt 0:00:01]} 41. Bxf5 {[%emt 0:31:44]} gxf5 {[%emt 0:30:27]} 42. Be7 {[%emt 0:00:15]} Rc8 {[%emt 0:00:34]} 43. Nb6 {[%emt 0:00:17]} Rg8 {[%emt 0:00:10]} 44. Bxc5 {[%emt 0:00:21]} Rxg2+ {[%emt 0:00:21]} 45. Kf1 {[%emt 0:00:07]} Be4 {[%emt 0:00:16]} 46. Nd5 {[%emt 0:02:19]} 1-0